Cogmind - Beta 16.1 @@@ ROGUE MODE // 2026.04.30 @ 13:35:05 Player: kareds Result: Destroyed by B-75 Beast with Magnetic Acceleration Cannon Performance ------------- Evolutions (3) 1500 Regions Visited (10) 2000 Robots Destroyed (67) 335 Value Destroyed (2290) 2290 Prototype IDs (39) 780 Alien Tech Used (0) 0 Bonus (641) 641 TOTAL SCORE: 7546 Bonus ------- Follower Combat Kills 184 Aligned with FarCom 300 Met Data Miner 300 Friendly Fire -143 Cogmind --------- Core Integrity 0/700 Matter 300/300 Energy 100/100 System Corruption 2% Temperature Cool (12) Movement Core (50) Location -6/Proximity Caves Parts ------- > --- POWER (1) -------- (None) > --- PROPULSION (3) --- (None) > --- UTILITY (6) ------ Improved Signal Interpreter Armor Integrity Analyzer > --- WEAPON (3) ------- Makeshift Axe > --- INVENTORY (5) ---- Neutrino Core Advanced Energy Well (500) Maul Peak State ------------ > --- POWER ------------ Light Deuterium Engine > --- PROPULSION ------- Armored Treads Armored Treads Armored Treads > --- UTILITY ---------- Experimental Sensor Array Improved Signal Interpreter Armor Integrity Analyzer Improved Medium Armor Plating Layered Light Armor Plating Hardlight Generator > --- WEAPON ----------- Heavy Laser AWS/Gauss > --- INVENTORY -------- Light Deuterium Engine Armored Treads System Shield Proton Missile Launcher [Rating: 60] Favorites ----------- Power Light Ion Engine Engine Light Ion Engine Power Core Light Nuclear Core Propulsion Light Treads Treads Light Treads Leg Aluminum Leg Utility Armor Integrity Analyzer Device Seismic Detector Storage Medium Storage Unit Processor Armor Integrity Analyzer Protection Hardened Medium Armor Plating Weapon Grenade Launcher Energy Gun Heavy Laser Ballistic Gun AWS/Gauss Ballistic Cannon Advanced Assault Cannon Launcher Grenade Launcher Special Weapon Molecular Deconstructor Slashing Weapon Makeshift Axe Build | -11 -10 -10 -10 -9 -8 -7 -7 -7 -7 -6 ------- Run | Yrd Mat Min Exi Min Mat Fac Low Low Dat Pro Slots Evolved 6 | . . . . . 4 2 . . . . Power . | . . . . . . . . . . . Propulsion 1 | . . . . . 1 . . . . . Utility 4 | . . . . . 3 1 . . . . Weapon 1 | . . . . . . 1 . . . . Parts Attached 48 | 6 4 4 . 3 15 1 4 5 . 6 Power 9 | 1 . 1 . 2 3 . . 1 . 1 Engine 8 | 1 . 1 . 2 3 . . 1 . . Core 1 | . . . . . . . . . . 1 Reactor . | . . . . . . . . . . . Propulsion 7 | 2 . . . . 4 . . 1 . . Treads 6 | 2 . . . . 3 . . 1 . . Leg 1 | . . . . . 1 . . . . . Wheel . | . . . . . . . . . . . Hover . | . . . . . . . . . . . Flight . | . . . . . . . . . . . Utility 18 | 1 3 1 . . 6 1 3 . . 3 Device 5 | 1 . 1 . . 3 . . . . . Storage 4 | . 3 . . . . . . . . 1 Processor 2 | . . . . . 1 1 . . . . Hackware . | . . . . . . . . . . . Protection 7 | . . . . . 2 . 3 . . 2 Artifact . | . . . . . . . . . . . Weapon 14 | 2 1 2 . 1 2 . 1 3 . 2 Energy Gun 4 | 1 . 1 . 1 1 . . . . . Energy Cannon . | . . . . . . . . . . . Ballistic Gun 4 | 1 . . . . 1 . . 1 . 1 Ballistic Cannon 2 | . . 1 . . . . . . . 1 Launcher 2 | . 1 . . . . . 1 . . . Special Weapon 1 | . . . . . . . . 1 . . Impact Weapon . | . . . . . . . . . . . Slashing Weapon 1 | . . . . . . . . 1 . . Piercing Weapon . | . . . . . . . . . . . Special Melee Weapon . | . . . . . . . . . . . Unidentified Prototypes 5 | . . . . . 3 . . 1 . 1 Parts Lost 21 | . . 1 . . . . 1 10 . 9 Power 3 | . . . . . . . . 1 . 2 Propulsion 4 | . . . . . . . . 3 . 1 Utility 8 | . . 1 . . . . 1 4 . 2 Weapon 6 | . . . . . . . . 2 . 4 Highest Loss Streak 10 | . . 1 . . . . 1 10 . 8 To Critical Strikes 1 | . . . . . . . . . . 1 Average Backups 6 | 3 7 9 9 8 4 4 4 3 4 2 Power . | . 1 1 1 1 . 1 1 . . . Propulsion 1 | 1 2 2 2 2 1 1 1 . . . Utility 2 | . 2 4 5 4 1 1 1 . . . Weapon 1 | . 1 2 1 1 1 . 1 2 4 2 Tool/Special . | . . . . . . . . . . . Unused Backups 12 | . . 1 1 3 3 . . 2 . 2 Power 3 | . . . . . 1 . . 1 . 1 Propulsion 1 | . . . . . 1 . . . . . Utility 6 | . . 1 . 3 1 . . 1 . . Weapon 2 | . . . 1 . . . . . . 1 Tool/Special . | . . . . . . . . . . . Average Slot Usage (%) 89 | . 99 99 100 100 95 84 90 76 35 47 Engine 10 | . 14 14 14 14 9 7 7 6 7 . Treads 23 | . 28 28 28 28 25 23 23 17 7 5 Device 11 | . 14 13 14 14 19 15 7 4 . . Storage 6 | . 13 14 14 14 . . . . . 1 Processor 6 | . . . . . 7 7 15 15 15 15 Protection 7 | . . . . . 17 15 21 15 . 2 Energy Gun 9 | . 14 14 14 14 5 7 6 5 2 5 Ballistic Gun 2 | . 1 . . . 3 7 7 4 . 8 Launcher 7 | . 12 14 14 14 5 . . . . . Peak Build Rating 60 | 6 7 11 12 16 53 60 60 54 23 36 Average Rating 25 | 4 6 9 11 13 43 57 52 42 17 24 On Entrance 23 | . 6 7 11 12 16 53 60 52 23 15 Avg Prop Armor Cover (%) 5 | . . . . . 5 6 5 5 . . Naked Turns . | . . . . . . . . . . . Heaviest Build 50 | 9 50 20 19 21 32 36 43 43 17 31 Greatest Support 40 | 40 40 40 40 40 40 40 40 40 20 20 Greatest Overweight (x) 3 | . 1 . . . . . 1 3 . 1 Average Overweight (x) . | . . . . . . . . . . . Largest Inventory Capacity 20 | 5 20 10 10 10 10 5 5 5 5 5 Average Capacity 7 | 5 8 10 10 10 5 5 5 5 5 5 Most Carried 10 | 5 8 10 10 10 10 5 5 5 5 4 Average Carried 6 | 4 7 9 9 9 5 4 4 3 4 2 Final Capacity 10 | 5 10 10 10 10 5 5 5 5 5 5 Final Carried 10 | 5 8 10 10 10 5 4 5 3 5 3 Class Distribution -------------------- 54% | Mutant 20% | Bomber 19% | Skirmisher 4% | Gunner Dominant Class ---------------- Mutant | -10/Materials Mutant | -10/Mines Mutant | -10/Exiles Skirmisher | -9/Mines Skirmisher | -8/Materials Tank | -7/Factory Bomber | -7/Lower Caves Mutant | -7/Lower Caves Mutant | -7/Data Miner Gunner | -6/Proximity Caves Resources | -11 -10 -10 -10 -9 -8 -7 -7 -7 -7 -6 ----------- Run | Yrd Mat Min Exi Min Mat Fac Low Low Dat Pro Matter Collected 1161 | 168 43 270 . 80 164 . 147 120 . 169 Remotely . | . . . . . . . . . . . Salvage Created 2433 | 12 29 218 . 55 754 . 691 392 . 282 Parts 145 | 3 10 20 . 12 32 . 23 30 . 15 Haulers Intercepted . | . . . . . . . . . . . Recyclers Shooed 1 | . . . . . 1 . . . . . Parts Field Recycled . | . . . . . . . . . . . Retrieved Matter . | . . . . . . . . . . . Parts Self-Destructed 63 | . . . . . . . 17 27 . 19 Prevented 6 | . . . . . . . 4 2 . . Parts Restored . | . . . . . . . . . . . Kills | -11 -10 -10 -10 -9 -8 -7 -7 -7 -7 -6 ------- Run | Yrd Mat Min Exi Min Mat Fac Low Low Dat Pro Combat Hostiles Destroyed 60 | . 6 8 . 7 11 . 12 10 . 6 Melee 1 | . . . . . . . . 1 . . Guns 40 | . 1 4 . 3 10 . 11 6 . 5 Cannons 1 | . . . . . . . . . . 1 AOE 15 | . 5 4 . 4 1 . 1 . . . Classes Destroyed 11 | 1 1 1 . . 3 . 1 3 . 1 Tunneler 2 | 1 . . . . 1 . . . . . Recycler 1 | . . . . . 1 . . . . . Watcher 3 | . . . . . 3 . . . . . Swarmer 25 | . 6 3 . 7 1 . 1 3 . 4 Grunt 22 | . . 5 . . 9 . 6 . . 2 Brawler 3 | . . . . . . . 3 . . . Sentry 3 | . . . . . 1 . 2 . . . Specialist 3 | . . . . . . . . 3 . . Hunter 2 | . . . . . . . . 2 . . Programmer 2 | . . . . . . . . 2 . . Samaritan 2 | . . . . . . . . . . 2 Thug 1 | . . . . . 1 . . . . . Best Kill Streak 11 | 1 3 3 . 4 7 . 11 3 . 3 Combat Bots Only 11 | . 3 3 . 4 5 . 11 3 . 3 Max Kills in Single Turn 3 | 1 2 3 . 2 2 . 1 2 . 2 Gunslinging 1 | . . . . . . . . . . 1 Exploded 3 | . 2 3 . 2 1 . 1 . . . Melee 1 | . . . . . . . . 1 . . Uniques/NPCs Destroyed . | . . . . . . . . . . . Combat | -11 -10 -10 -10 -9 -8 -7 -7 -7 -7 -6 -------- Run | Yrd Mat Min Exi Min Mat Fac Low Low Dat Pro Hostile Shots Fired 442 | . 16 22 . 21 24 . 72 186 . 101 Missed 128 | . 5 7 . 5 10 . 27 51 . 23 Hits 314 | . 11 15 . 16 14 . 45 135 . 78 Projectile 314 | . 11 15 . 16 14 . 45 135 . 78 Critical Strikes 7 | . . . . . 1 . 2 2 . 2 Part Disruptions 1 | . . . . . . . . 1 . . Damage Taken 5056 | . 95 175 . 136 282 48 511 2196 . 1613 Core 815 | . 19 28 . 29 14 . 44 471 . 210 Absorbed by Shields 132 | . . . . . . . 124 8 . . Core Remaining (%) 88 | 100 . . . 69 97 . . . . . Volleys Fired 106 | 5 14 16 . 12 17 . 11 15 . 16 Largest 3 | 2 2 1 . 1 2 . 1 1 . 3 Hottest 137 | 60 60 50 . 50 99 . 69 69 . 137 Shots Fired 241 | 10 15 16 . 12 60 . 63 26 . 39 Gun 204 | 10 9 13 . 7 55 . 61 16 . 33 Cannon 6 | . . . . . . . . . . 6 Launcher 22 | . 6 3 . 5 5 . 2 1 . . Special 9 | . . . . . . . . 9 . . Kinetic 130 | 5 1 . . . 38 . 52 11 . 23 Thermal 80 | 5 8 13 . 7 17 . 9 5 . 16 Explosive 19 | . 6 3 . 5 5 . . . . . Electromagnetic 3 | . . . . . . . 2 1 . . Robot Hit Streak 26 | 3 5 3 . 4 11 . 26 20 . 6 Robot Miss Streak 6 | 3 2 1 . 2 4 . 1 2 . 6 Penetration Max 1 | . . . . . . . . 1 . 1 Secondary Targets 1 | . . . . . . . . . . 1 Max Gunslinging Chain 1 | . . . . . . . . . . 1 Autonomous 102 | . . . . . 38 . 52 12 . . Shots Hit Robots 172 | 5 7 9 . 7 41 . 58 23 . 22 Core Hits 103 | 1 9 14 . 7 26 . 25 10 . 11 Critical Kills 1 | . . . . . 1 . . . . . Critical Parts Destroyed . | . . . . . . . . . . . Critical Strikes 6 | . . 1 . 1 2 . . 1 . 1 Burn 4 | . . 1 . 1 1 . . . . 1 Destroy 1 | . . . . . 1 . . . . . Sever 1 | . . . . . . . . 1 . . Melee Attacks 12 | . . . . . . . . 10 . 2 Impact . | . . . . . . . . . . . Slashing 12 | . . . . . . . . 10 . 2 Piercing . | . . . . . . . . . . . Sneak Attacks 2 | . . . . . . . . . . 2 Combat Hostiles . | . . . . . . . . . . . Follow-up Attacks . | . . . . . . . . . . . Damage Inflicted 5769 | 58 452 312 . 383 1536 . 1756 640 . 632 Guns 3848 | 58 47 104 . 82 1289 . 1535 345 . 388 Cannons 101 | . . . . . . . . . . 101 Explosions 1452 | . 405 200 . 301 243 . 221 82 . . Melee 356 | . . . . . . . . 213 . 143 Ramming 12 | . . 8 . . 4 . . . . . Kinetic 3213 | 26 . . . . 1177 . 1384 308 . 318 Thermal 808 | 32 47 104 . 82 112 . 223 37 . 171 Explosive 1149 | . 405 200 . 301 243 . . . . . Electromagnetic 231 | . . . . . . . 149 82 . . Impact . | . . . . . . . . . . . Slashing 356 | . . . . . . . . 213 . 143 Piercing . | . . . . . . . . . . . Highest Corruption 2 | . . . . . . 1 1 2 2 2 Average Corruption 1 | . . . . . . 1 1 1 2 2 Corruption Purged . | . . . . . . . . . . . Corruption Blocked . | . . . . . . . . . . . Effects 26 | . . . . . . . 6 11 2 7 Message Errors 9 | . . . . . . . 2 4 . 3 Matter Fused 3 | . . . . . . . 1 1 1 . Heat Flow Errors 2 | . . . . . . . . 1 . 1 Energy Discharges 3 | . . . . . . . 2 1 . . Data Loss (minor) 6 | . . . . . . . 1 2 . 3 Data Loss (major) 1 | . . . . . . . . 1 . . Alerts 2 | . . . . . . . . 1 1 . Overload Shots . | . . . . . . . . . . . Overflow Damage 99 | . 45 . . . 5 . 23 26 . . Projectiles . | . . . . . . . . . . . Explosions 73 | . 45 . . . 5 . 23 . . . Melee 26 | . . . . . . . . 26 . . Knockbacks 1 | . . . . . . . . . . 1 Impact . | . . . . . . . . . . . Kinetic 1 | . . . . . . . . . . 1 Secondary . | . . . . . . . . . . . Self-Inflicted Damage 19 | . . . . 19 . . . . . . Shots 1 | . . . . 1 . . . . . . Rammed 2 | . . 1 . . 1 . . . . . Targets Rammed 2 | . . 1 . . 1 . . . . . Kicked . | . . . . . . . . . . . Crushed . | . . . . . . . . . . . Highest Temperature 319 | . . 78 . 30 56 . 150 285 . 319 Average Temperature 82 | . . 28 . 14 17 . 49 100 . 150 Received Heat Transfer 1081 | . . 90 . . 144 . 274 117 . 456 Effects 4 | . . . . . . . . . . 4 Energy Bleed 1 | . . . . . . . . . . 1 Interference 3 | . . . . . . . . . . 3 Siege Activations . | . . . . . . . . . . . Martial Activations . | . . . . . . . . . . . Shielding Activations . | . . . . . . . . . . . Robots Disrupted . | . . . . . . . . . . . Combat Hostiles . | . . . . . . . . . . . Robots Corrupted . | . . . . . . . . . . . Combat Hostiles . | . . . . . . . . . . . Parts Fried . | . . . . . . . . . . . Impact Corruptions . | . . . . . . . . . . . Robots Melted . | . . . . . . . . . . . Combat Hostiles . | . . . . . . . . . . . Parts Melted 2 | . . . . . . . 1 . . 1 Heat Transferred 2002 | 75 100 358 . 296 296 . 396 74 . 407 Parts Sabotaged . | . . . . . . . . . . . Parts Stolen . | . . . . . . . . . . . Parts Stripped . | . . . . . . . . . . . Power Chain Reactions 1 | . . . . . . . 1 . . . Alert | -11 -10 -10 -10 -9 -8 -7 -7 -7 -7 -6 ------- Run | Yrd Mat Min Exi Min Mat Fac Low Low Dat Pro Maximum Alert Level 1 | . . . . . 1 . . . . . Low Security (%) 98 | 100 100 100 . 100 94 100 . . . . Level 1 1 | . . . . . 5 . . . . . Level 2 . | . . . . . . . . . . . Level 3 . | . . . . . . . . . . . Level 4 . | . . . . . . . . . . . Level 5 . | . . . . . . . . . . . High Security . | . . . . . . . . . . . Max Security . | . . . . . . . . . . . Peak Influence 221 | 5 98 91 . 141 221 91 . . . . Initial 91 | . . . . . . 91 . . . . Average 24 | . 35 9 . 53 38 63 . . . . Influence Increases 1939 | 5 210 218 . 201 418 . 250 220 . 417 Destroy 0b10 Robot/C 1300 | . 120 160 . 140 220 . 240 200 . 220 Destroy 0b10 Robot/NC 30 | 5 . . . . 25 . . . . . Destroy Leader 166 | . 20 20 . 20 56 . 10 20 . 20 Allied During Kill 42 | . . . . . . . . . . 42 Successful Hack 42 | . 29 . . . 13 . . . . . Disable Machine 60 | . . 15 . . 45 . . . . . Destroy Structure 119 | . 41 23 . 26 29 . . . . . Lose Combat Pursuer 180 | . . . . 15 30 . . . . 135 Influence Decreases 1844 | 5 207 221 . 201 215 172 281 220 . 322 Entered New Map 128 | . . 3 . . . 112 13 . . . Time Decay 1557 | 5 207 208 . 201 215 60 258 188 . 215 Lost Part 139 | . . 10 . . . . 10 32 . 87 Lost Ally 20 | . . . . . . . . . . 20 Squads Dispatched 5 | . 1 . . . 3 . . . . 1 Investigation 3 | . 1 . . . 2 . . . . . Extermination . | . . . . . . . . . . . Reinforcement 1 | . . . . . 1 . . . . . Assault 1 | . . . . . . . . . . 1 Garrison . | . . . . . . . . . . . Intercept . | . . . . . . . . . . . Searches Triggered . | . . . . . . . . . . . Construction Impeded . | . . . . . . . . . . . Haulers Reinforced . | . . . . . . . . . . . Active Scanning Responses . | . . . . . . . . . . . Cargo Convoy Interrupts . | . . . . . . . . . . . Stealth | -11 -10 -10 -10 -9 -8 -7 -7 -7 -7 -6 --------- Run | Yrd Mat Min Exi Min Mat Fac Low Low Dat Pro Distress Signals 4 | . 1 1 . . 2 . . . . . Communications Jammed . | . . . . . . . . . . . Distress Signals . | . . . . . . . . . . . Times Spotted 87 | . 12 8 . 8 17 . 12 8 . 22 Peak Tracking Total 10 | . 4 3 . 4 5 . 10 5 . 9 Tactical Retreats 7 | . . . . 1 2 . . . . 4 Traps | -11 -10 -10 -10 -9 -8 -7 -7 -7 -7 -6 ------- Run | Yrd Mat Min Exi Min Mat Fac Low Low Dat Pro Traps Triggered 4 | . 1 . . . 1 2 . . . . Indirectly . | . . . . . . . . . . . Trap Hack Attempts . | . . . . . . . . . . . Triggered . | . . . . . . . . . . . Disarmed . | . . . . . . . . . . . Reprogrammed . | . . . . . . . . . . . Reused . | . . . . . . . . . . . Traps Extracted . | . . . . . . . . . . . Installed . | . . . . . . . . . . . Triggered . | . . . . . . . . . . . Machines | -11 -10 -10 -10 -9 -8 -7 -7 -7 -7 -6 ---------- Run | Yrd Mat Min Exi Min Mat Fac Low Low Dat Pro Machines Disabled 7 | . . 1 . . 3 . 2 . . 1 Max in Single Turn 1 | . . 1 . . 1 . 1 . . . Machines Repaired . | . . . . . . . . . . . Machines Dismantled . | . . . . . . . . . . . Machines Sabotaged . | . . . . . . . . . . . Overloaded Fab Kills . | . . . . . . . . . . . Hacking | -11 -10 -10 -10 -9 -8 -7 -7 -7 -7 -6 --------- Run | Yrd Mat Min Exi Min Mat Fac Low Low Dat Pro Machines Accessed 16 | . 3 1 1 1 4 1 1 . 4 . Terminals 7 | . 2 1 . . 3 1 . . . . Fabricators . | . . . . . . . . . . . Repair Stations 2 | . 1 . . . 1 . . . . . Recycling Units . | . . . . . . . . . . . Scanalyzers . | . . . . . . . . . . . Garrison Access . | . . . . . . . . . . . Total Hacks 67 | . 15 4 1 1 14 3 1 . 28 . Successful 42 | . 7 1 1 1 3 . 1 . 28 . Failed 25 | . 8 3 . . 11 3 . . . . Catastrophic 6 | . . 2 . . 3 1 . . . . Database Lockouts . | . . . . . . . . . . . Manual 34 | . 12 4 1 . 13 3 . 1 . . Terminals 30 | . 11 4 . . 12 3 . . . . Fabricators . | . . . . . . . . . . . Repair Stations 6 | . 4 . . . 2 . . . . . Recycling Units . | . . . . . . . . . . . Scanalyzers . | . . . . . . . . . . . Garrison Access . | . . . . . . . . . . . Terminal Hacks 37 | . 3 1 1 1 2 . 1 . 28 . Record 11 | . . . . . . . . . 11 . Part Schematic 8 | . . . . . . . . . 8 . Robot Schematic 6 | . . . . . . . . . 6 . Robot Analysis 4 | . 3 . . . 1 . . . . . Prototype ID Bank 3 | . . . . . . . . . 3 . Open Door 2 | . . . . 1 . . 1 . . . Branch Access Points 1 | . . 1 . . . . . . . . Disarm Traps 1 | . . . . . 1 . . . . . Proto ID Catalog 1 | . . . 1 . . . . . . . Fabricator Hacks . | . . . . . . . . . . . Repair Station Hacks . | . . . . . . . . . . . Recycling Unit Hacks . | . . . . . . . . . . . Scanalyzer . | . . . . . . . . . . . Garrison Access Hacks . | . . . . . . . . . . . Unauthorized Hacks 5 | . 4 . . . 1 . . . . . Terminals 5 | . 4 . . . 1 . . . . . Assimilate 2 | . 2 . . . . . . . . . Botnet 1 | . 1 . . . . . . . . . Operators 2 | . 1 . . . 1 . . . . . Fabricators . | . . . . . . . . . . . Repair Stations . | . . . . . . . . . . . Recycling Units . | . . . . . . . . . . . Scanalyzers . | . . . . . . . . . . . Garrison Access . | . . . . . . . . . . . Data Cores Recovered . | . . . . . . . . . . . Used . | . . . . . . . . . . . Hacking Detections 8 | . 2 1 . . 4 1 . . . . Full Trace Events 4 | . 1 1 . . 2 . . . . . Feedback Events . | . . . . . . . . . . . Feedback Blocked . | . . . . . . . . . . . Robot Schematics Acquired 6 | . . . . . . . . . 6 . Robots Built . | . . . . . . . . . . . Authchips . | . . . . . . . . . . . Time . | . . . . . . . . . . . Total Robot Build Rating . | . . . . . . . . . . . Part Schematics Acquired 8 | . . . . . . . . . 8 . Parts Built . | . . . . . . . . . . . Authchips . | . . . . . . . . . . . Time . | . . . . . . . . . . . Total Part Build Rating . | . . . . . . . . . . . Part Studies Acquired . | . . . . . . . . . . . Parts Repaired . | . . . . . . . . . . . Time . | . . . . . . . . . . . Parts Recycled . | . . . . . . . . . . . Recycled Matter . | . . . . . . . . . . . Retrieved Matter . | . . . . . . . . . . . Retrieved Components . | . . . . . . . . . . . Parts Scanalyzed . | . . . . . . . . . . . Part Schematics Acquired . | . . . . . . . . . . . Parts Damaged . | . . . . . . . . . . . Bothacking | -11 -10 -10 -10 -9 -8 -7 -7 -7 -7 -6 ------------ Run | Yrd Mat Min Exi Min Mat Fac Low Low Dat Pro Used RIF Installer . | . . . . . . . . . . . Robots Hacked . | . . . . . . . . . . . Non-combat . | . . . . . . . . . . . Combat . | . . . . . . . . . . . Robot Hacks Applied . | . . . . . . . . . . . Relay Couplers Released . | . . . . . . . . . . . Fabnet Peak Effective % . | . . . . . . . . . . . Robots Rewired . | . . . . . . . . . . . Allies Hacked . | . . . . . . . . . . . Hacks Repelled . | . . . . . . . . . . . Allies | -11 -10 -10 -10 -9 -8 -7 -7 -7 -7 -6 -------- Run | Yrd Mat Min Exi Min Mat Fac Low Low Dat Pro Total Allies 2 | . . 1 . . . . . . . 1 Largest Group 1 | . . 1 . . . . . . . 1 Highest-Rated Group 96 | . . 31 . . . . . . . 96 Highest-Rated Ally 96 | . . 31 . . . . . . . 96 Total Orders . | . . . . . . . . . . . Ally Attacks 21 | . . . . . . . . . . 21 Total Damage 844 | . . . . . . . . . . 844 Kills 5 | . . . . . . . . . . 5 Allies Corrupted . | . . . . . . . . . . . Allies Melted . | . . . . . . . . . . . Intel | -11 -10 -10 -10 -9 -8 -7 -7 -7 -7 -6 ------- Run | Yrd Mat Min Exi Min Mat Fac Low Low Dat Pro Active Infowar (turns) 5144 | 50 588 2504 334 552 1100 12 4 . . . Sensors 1110 | . . . . . 1094 12 4 . . . Terrain 1578 | . . 474 334 552 218 . . . . . Seismic 2668 | 50 588 2030 . . . . . . . . Robot Analysis Total 4 | . 3 . . . 1 . . . . . Derelict Logs Recovered 4 | . . 1 . 1 . . 1 1 . . Drone Launches . | . . . . . . . . . . . Drone Recoveries . | . . . . . . . . . . . Exploration | -11 -10 -10 -10 -9 -8 -7 -7 -7 -7 -6 ------------- Run | Yrd Mat Min Exi Min Mat Fac Low Low Dat Pro Turns Passed 8313 | 148 588 2563 334 552 1100 128 1073 1108 180 539 Spaces Moved 4516 | 75 310 1528 208 307 539 74 472 469 106 428 Core 251 | 1 . . . . . . . 2 . 248 Treads 4265 | 74 310 1528 208 307 539 74 472 467 106 180 Legs . | . . . . . . . . . . . Wheels . | . . . . . . . . . . . Hover . | . . . . . . . . . . . Flight . | . . . . . . . . . . . Fastest Speed 50 | 50 160 160 160 160 160 170 170 50 170 50 Average Speed 169 | 158 162 160 160 160 166 170 221 219 170 110 Slowest Speed 250 | 160 240 160 160 160 170 170 250 250 170 250 Overloaded Moves . | . . . . . . . . . . . Propulsion Burnouts . | . . . . . . . . . . . Robots Hopped . | . . . . . . . . . . . Potential Cave-ins . | . . . . . . . . . . . Cave-ins Triggered . | . . . . . . . . . . . Exploration Rate (%) 54 | 5 44 99 61 70 53 2 66 54 75 65 Regions Visited 10 Branch Regions 7 Pre-discovered Areas 3 | . . 1 . 1 . . . . 1 . Known Exits Taken 4 | . . . . . . 1 1 1 1 . Unknown Exits Taken 6 | 1 1 1 1 1 1 . . . . . Scrap Searched 11 | . . 1 . 2 . . 5 1 . 2 Spaces Dug 8 | . 7 . . . . . . 1 . . Terrain Destroyed 175 | . 49 23 . 32 35 . 30 6 . . Melee 1 | . . . . . . . . 1 . . Projectile 45 | . . . . . 13 . 27 5 . . AOE 129 | . 49 23 . 32 22 . 3 . . . Terrain Rammed . | . . . . . . . . . . . Walls Destroyed . | . . . . . . . . . . . Machines Disabled . | . . . . . . . . . . . Actions | -11 -10 -10 -10 -9 -8 -7 -7 -7 -7 -6 --------- Run | Yrd Mat Min Exi Min Mat Fac Low Low Dat Pro Total 5036 | 92 378 1630 210 358 721 76 490 515 107 459 Wait 271 | . 42 75 . 30 121 . . 3 . . Move 4506 | 74 309 1527 207 306 538 73 471 468 105 428 Hop . | . . . . . . . . . . . Pick Up 32 | 7 4 3 1 2 10 1 1 2 . 1 Fast Attach 18 | 4 . 1 . . 3 . 1 4 . 5 Attach 22 | 2 1 . . . 8 2 . 4 . 5 Detach 6 | . . . . . . . . 2 2 2 Swap 27 | . 6 4 . 3 7 . 4 3 . . Drop 34 | . 2 3 2 5 16 . 2 4 . . Fire 106 | 5 14 16 . 12 17 . 11 15 . 16 Melee 12 | . . . . . . . . 10 . 2 Ram . | . . . . . . . . . . . Kick . | . . . . . . . . . . . Crush 2 | . . 1 . . 1 . . . . . Escape Stasis . | . . . . . . . . . . . Rewire . | . . . . . . . . . . . Trap . | . . . . . . . . . . . Miscellaneous . | . . . . . . . . . . . Route ------- -11/Scrapyard -10/Materials -10/Mines (discovered 4 exits: [*Mat x2] / *Exi / [*Sub]) -10/Exiles -9/Mines (discovered 2 exits: *Mat x2) -8/Materials -7/Factory -7/Lower Caves -7/Lower Caves (discovered 2 exits: *Fac / *Dat) -7/Data Miner -6/Proximity Caves History --------- Turn | Location | Event 20 | -11/Scrapyard | Discovered new exit (range 16) 149 | -11/Scrapyard | Entered Materials 306 | -10/Materials | Build established: Mutant 461 | -10/Materials | Discovered new exit (range 15) 737 | -10/Materials | Entered Mines 814 | -10/Mines | Found a damaged Exp. Sensor Array with a note attached 834 | -10/Mines | Found Prototype Device 970 | -10/Mines | Discovered new exit (range 11) 988 | -10/Mines | Received a Mining Laser from a helpful Derelict 1032 | -10/Mines | Discovered new exit (range 7) 1115 | -10/Mines | Discovered new exit (range 12) 1224 | -10/Mines | Learned location of Zion (-6) 2452 | -10/Mines | Excavation squad dispatched 2452 | -10/Mines | A large section of the Mines collapsed 3294 | -10/Mines | Deemed a non-threat by the Exiles lab entrance 3294 | -10/Mines | Discovered new exit (range 5) 3300 | -10/Mines | Entered Exiles 3339 | -10/Exiles | Met 8R-AWN 3364 | -10/Exiles | Met EX-HEX 3411 | -10/Exiles | Met EX-BIN 3433 | -10/Exiles | Aligned with FarCom system 3435 | -10/Exiles | Given EX-Vault access code 3472 | -10/Exiles | Opened EX-Vault 3482 | -10/Exiles | Found AWS/Gauss 3514 | -10/Exiles | Warned to stay clear of 0b10 Research branches 3557 | -10/Exiles | Met EX-DEC 3613 | -10/Exiles | Discovered new exit (range 14) 3634 | -10/Exiles | Left Exiles lab with AWS/Gauss 3634 | -10/Exiles | Entered Mines 3820 | -9/Mines | Discovered new exit (range 9) 3913 | -9/Mines | Discovered new exit (range 15) 3920 | -9/Mines | Build established: Skirmisher 3925 | -9/Mines | Met a Derelict who couldn't figure out how to use a Trap Extractor 4186 | -9/Mines | Entered Materials 4186 | -8/Materials | Evolved 4 slots: Propulsion x1, Utility x3 4192 | -8/Materials | Identified Exp. Sensor Array 5231 | -8/Materials | Discovered new exit (range 16) 5286 | -8/Materials | Entered Factory 5286 | -7/Factory | Evolved 2 slots: Utility x1, Weapon x1 5337 | -7/Factory | Discovered new exit (range 15) 5412 | -7/Factory | Identified exit to Lower Caves 5414 | -7/Factory | Entered Lower Caves 5427 | -7/Lower Caves | Attracted the attention of an 0b10 outpost 5484 | -7/Lower Caves | Destroyed 11 combat bots 5570 | -7/Lower Caves | Attracted the attention of an 0b10 checkpoint 5662 | -7/Lower Caves | Build established: Bomber 5924 | -7/Lower Caves | Identified exit to Lower Caves 6487 | -7/Lower Caves | Entered another Lower Caves area 6507 | -7/Lower Caves | Discovered new exit (range 15) 6547 | -7/Lower Caves | Identified exit to Factory 6958 | -7/Lower Caves | Acquired the password to a Derelict Tinkerer's latest research 6973 | -7/Lower Caves | Found Prototype Special Weapon 6973 | -7/Lower Caves | Identified Molecular Deconstructor 7099 | -7/Lower Caves | Caught by Unaware searching for contraband prototypes 7099 | -7/Lower Caves | AWS/Gauss suddenly broke down 7135 | -7/Lower Caves | Learned Factory stockpile data 7138 | -7/Lower Caves | Caught by Unaware searching for contraband prototypes 7229 | -7/Lower Caves | Core integrity fell below 50% 7253 | -7/Lower Caves | Lost 10 parts (1p3n4u2w) 7481 | -7/Lower Caves | Build established: Mutant 7570 | -7/Lower Caves | Discovered new exit (range 15) 7593 | -7/Lower Caves | Identified exit to Data Miner 7595 | -7/Lower Caves | Entered Data Miner 7595 | -7/Data Miner | Discovered new exit (range 6) 7628 | -7/Data Miner | Met Data Miner 7688 | -7/Data Miner | Acquired the access code to Warlord's prototype stash 7688 | -7/Data Miner | Learned location of Section 7 (-3) 7721 | -7/Data Miner | Received God Mode back door access code from Data Miner 7770 | -7/Data Miner | Identified exit to Proximity Caves 7775 | -7/Data Miner | Entered Proximity Caves 7933 | -6/Proximity Caves | Escorted by Enhanced Grunt 8071 | -6/Proximity Caves | Build established: Gunner 8114 | -6/Proximity Caves | Attracted the attention of an 0b10 outpost 8132 | -6/Proximity Caves | Core integrity fell below 20% 8214 | -6/Proximity Caves | Lost 8 parts (1p1n2u4w) 8313 | -6/Proximity Caves | Spotted B-75 Beast 8314 | -6/Proximity Caves | Destroyed by B-75 Beast with Magnetic Acceleration Cannon Last Messages --------------- 08180_ Penetrated by Slug. 08181_ Y-64 Sentinel heat short circuits KE Penetrator. 08181_ C-45 Heavy ARC bursts open, deploying its payload. 08181_ G-67 Veteran unfolds itself. 08181_ L-41 Fighter unfolds itself. 08181_ G-50 Soldier unfolds itself. 08181_ M-28 Smith unfolds itself. 08183_ Lyr. Medium Armor Plating destroyed. 08183_ Arm. Treads destroyed. 08208_ System corrupted: Component data lost. 08263_ Sneak attack on FL-7P8(S). 08263_ FL-7P8(S) destroyed. 08265_ Acquired 44 matter. 08266_ Acquired Neutrino Core. 08288_ Sneak attack on 22-XPA(S). 08288_ 22-XPA(S) destroyed. 08290_ Acquired 28 matter. [Achievement: Achiever] Map ----- +----------------------------------------------------+ | ??????????????????????????????????# #??????## ## | | ??????????????????????????????????######??## | | ????????????????????????????????????# ### | | ????????????????????????????????????# ## | | ?????????????????????????????????????# | | ?????????????????????????????????????## ## | | ?????????????????????????????????????## ### | | ????????????????????????????????????## #?# | | ????????????????????????????????????# ##?# | | ????????????????????????????????????# ####??# | | ????????????????????????????????????# ##????# | | ????????????????????????????????????## ##???# | | ?????????????????????????????????????## #???# | | ?????????????????????????????????????## #???# | | ???????????????????????????????????### #???# | | ???????????????????????????????????# ##???# | | ???????????????????????????????????# ##????# | | ???????????????????????????????????# ##?????# | | ??????????????????####????????????## ##??????# | | ??????????????????# ???????????# ###???????# | | ??????????????????# ???????????# ##?????????? | | ??????????????????# BB ??????????## #??????????? | | ??????????????????# BB ???????###?## #??????????? | | ??????????????????# ?###### #### #??????????? | | ?????????????????## ## ## #??????????? | | ???????????????# @ #??????????? | | ???????????????# #####??????????? | | ???????????? ######% #??????????????? | | ## #???????????## ## #??????????????? | | #?????????????# ## ## #?????????????? | | # #????????????? ##### #?????????????? | | ???????????????????? #??? # #?????????????? | | ???????????????????# #??# ## #?????????????? | | ?????????????????## ??# ?# ?????????????? | | ?????????##??????# ? ??### ????????????? | | ????????? ##?????# ?? ????? #???????????? | | ????????? #????## #?###?????? ???????????? | | ###?????? #???## #?????????? ??????????? | | ####??# #??## #?????????????###??????? | | #### #?## #????????????? ####???? | | ## ??# ?????????????# ##??? | | ## #???# ??????????????## #??? | | ### ## #????# #???????????????# # #??? | | #### ## #????# #???????????????# ## #??? | | ??# # ###### #??????????????## #?# #??? | | ### ###????#####??## #?# ##?? | | % % % ###### ! #### #?# ##? | | ######### % % ### #? | | ##???????## ## % ## | | ##?????????## ######## | +----------------------------------------------------+ Best States ------------- Heat Dissipation 45 Energy Generation 16 Energy Capacity 600 Matter Stores 300 Matter Capacity 300 Sight Range 16 Robot Scan Range 20 Terrain Scan Range 16 Terrain Scan Density 10 Armor Coverage 600 Evasion (%) 50 Armor Integrity Analysis 30 Recoil Reduction 2 Item Schematics ----------------- Combat Drone Bay | -7/Data Miner | Free Lgt. Regenerative Plating | -7/Data Miner | Free Multireflex Exoskeleton | -7/Data Miner | Free Exp. Targeting Computer | -7/Data Miner | Free Imp. Lightning Gun | -7/Data Miner | Free Arm. Medium Treads | -7/Data Miner | Free Imp. Transmission Jammer | -7/Data Miner | Free Disruptor Cannon | -7/Data Miner | Free Robot Schematics ------------------ M-22 Extractor | -7/Data Miner | Free Y-54 Guardian | -7/Data Miner | Free P-60 Hacker | -7/Data Miner | Free R-10 Processor | -7/Data Miner | Free B-60 Warrior | -7/Data Miner | Free H-66 Slayer | -7/Data Miner | Free Fabricated ------------ Nothing Repaired ---------- Nothing Studied --------- None Alien Tech Used ----------------- None Achievements -------------- Achiever Deconstruction root@ Challenges ------------ None Game ------ Seed GuidedDisassembledDriver Manual? 0 Play Time 01:04:46 Cumulative 26.4 hours Start 2026.04.28 @ 22:39:26 End 2026.04.30 @ 13:35:05 Sessions 2 Manual Loads 0 Difficulty Rogue Special Mode None Game No. 32 Rogue 16 Adventurer 16 Explorer 0 Win Type - Total 0 Types 0/0/0/0/0/0/0/0/0/0 Lore% 33 Gallery% 31 Achievement% 25 Wizard Run 0 Options --------- Layout 1 ASCII 0 Keyboard 0 Movement Mouse Keybinds 0 Fullscreen 1 Font 24/Smallcaps Map View 50x35 Zoom Use 0% Tactical HUD 1 Map Filters NONE Filters NONE Steam 1 RUN: 72af6681-e5ba-41ff-a17e-adc09aec3fce